bitfinex-derivatives/quotes_ETHF0:USTF0_20250314
["timestamp","ask_amount","ask_price","bid_price","bid_amount"]
[1741911797311,5.64277,1865.4,1865.3,1.3715]
[1741911797610,4.5702,1865.4,1865.3,2.44412]
[1741911797807,1.3624,1865.4,1865.3,1.3715]
[1741911798015,2.43496,1865.4,1865.3,1.3715]
[1741911798205,1.07267,1865.2,1865.1,0.00803062]
[1741911798400,2.50116,1865.3,1865.1,1.08073062]
[1741911798700,0.00803062,1865.5,1865.2,1.3819]
[1741911798900,0.00803062,1865.5,1865.4,1.07256]
[1741911799910,0.00803062,1865.5,1865.4,2.45446]
[1741911800609,0.00803062,1865.5,1865.4,1.3819]
[1741911800806,1.08053062,1865.5,1865.4,1.3819]
[1741911801002,0.00803062,1865.5,1865.2,0.6616]
[1741911801208,0.65933062,1865.5,1865.2,1.3819]
[1741911801409,0.65933062,1865.5,1865.1,4.28854062]
[1741911801410,0.6963,1865.4,1865.1,0.00803062]
[1741911801613,1.07267,1865.2,1865.1,0.00803062]
[1741911804713,4.28047,1865.2,1865.1,0.00803062]
[1741911805917,2.427,1865.3,1865.1,0.00803062]
[1741911805918,3.49965,1865.3,1865.1,0.00803062]
[1741911806216,3.49963,1865.3,1865.1,2.47823062]
[1741911806416,3.49963,1865.3,1865.2,1.3975]
[1741911806916,4.97668,1865.4,1865.2,2.47017]
[1741911807307,0.00803062,1865.5,1865.4,1.07256]
[1741911807512,0.00803062,1865.5,1865.4,4.28036]
[1741911810515,1.08053062,1865.5,1865.4,3.2078]
[1741911810718,1.08053062,1865.5,1865.4,4.6193]
[1741911811418,0.00803062,1865.5,1865.4,4.6193]
[1741911812516,1.08053062,1865.5,1865.4,4.6193]
[1741911812714,0.00803062,1865.5,1865.2,3.883]
[1741911812916,1.07267,1865.2,1865.1,0.00803062]
[1741911813312,21.57267,1865.2,1865.1,0.00803062]
[1741911813715,1.07267,1865.2,1865.1,0.00803062]
[1741911814217,2.41377,1865.2,1865.1,0.00803062]
[1741911817822,1.3411,1865.2,1865.1,1.08076062]
[1741911818317,4.88917062,1865.5,1865.1,0.00803062]
[1741911818525,5.15723062,1865.5,1865.2,1.3334]
[1741911818720,1.07262,1865.3,1865.2,1.3334]
[1741911818919,1.07267,1865.2,1865.1,0.00803062]
[1741911819118,3.81663062,1865.5,1865.1,1.34143062]
[1741911819315,3.77463062,1865.5,1865.4,1.07256]
[1741911819519,0.00803062,1865.5,1865.4,1.07256]
[1741911819721,0.00803062,1865.5,1865.4,1.77346]
[1741911820026,3.2078,1865.8,1865.6,1.07239]
[1741911820218,4.28014,1865.8,1865.7,1.3576]
[1741911820619,5.59104,1865.8,1865.7,1.3576]
[1741911822530,1.07243,1865.7,1865.4,1.77343]
[1741911822729,1.4341,1865.6,1865.5,2.4706]
[1741911824230,4.28017,1865.8,1865.5,2.4706]
[1741911824529,4.28016,1865.8,1865.6,2.47054]
[1741911824726,5.71426,1865.8,1865.7,1.3981]
[1741911824929,4.28016,1865.8,1865.7,1.3981]
[1741911825828,1.07243,1865.7,1865.6,1.3682]
[1741911826222,3.2078,1865.8,1865.6,1.3682]
[1741911826223,4.28016,1865.8,1865.6,1.3682]
[1741911826428,4.28016,1865.8,1865.6,2.44062]
[1741911826632,1.07239,1865.7,1865.6,1.3682]
[1741911826826,1.07239,1865.7,1865.5,1.07249]
[1741911828029,4.28017,1865.8,1865.6,1.07244]
[1741911828429,1.76135062,1865.9,1865.7,1.07239]
[1741911828629,1.08035062,1865.9,1865.8,0.6731]
[1741911829232,0.00803062,1865.9,1865.8,0.6731]
[1741911829531,0.00803062,1865.9,1865.8,1.74543]
[1741911830120,1.07217,1866.1,1866.0,1.07219]
[1741911830741,0.6916,1866.4,1865.8,3.8809]
[1741911830932,1.07221,1866.0,1865.9,1.07223]
[1741911831133,1.07221,1866.0,1865.8,3.8809]
[1741911831432,0.00803062,1866.1,1865.8,3.8809]
[1741911831629,1.07223,1866.0,1865.9,1.07227]
[1741911831830,1.07223,1866.0,1865.9,1.61791959]
[1741911832331,1.07223,1866.0,1865.9,1.07227]
[1741911834439,0.00803062,1866.1,1865.9,1.07227]
[1741911834736,0.00803062,1866.1,1866.0,4.28001]
[1741911835139,1.07194,1866.5,1866.0,8.19762223]
[1741911835331,4.27971,1866.6,1866.4,1.07195]
[1741911835634,1.07196,1866.5,1866.3,1.07199]
[1741911835840,1.07196,1866.5,1866.3,1.75919]
[1741911836336,4.28773062,1866.6,1866.3,0.6872]
[1741911836538,4.28773062,1866.6,1866.4,1.07194]
[1741911836736,3.21583062,1866.6,1866.3,1.75923]
[1741911836938,1.07196,1866.5,1866.3,1.75923]
[1741911837835,1.07196,1866.5,1866.3,0.6872]
[1741911838140,1.07196,1866.5,1866.3,1.7592]
[1741911838341,1.07196,1866.5,1866.3,1.75921]
[1741911838745,3.21583062,1866.6,1866.3,0.6872]
[1741911838938,3.21583062,1866.6,1866.2,1.08011062]
[1741911839240,1.07204,1866.3,1866.2,1.08011062]
[1741911839841,1.4233,1866.5,1866.2,1.08013062]
[1741911840135,1.07201,1866.4,1866.2,1.08013062]
[1741911840331,1.07198,1866.4,1866.3,1.07202]
[1741911840934,1.07198,1866.4,1866.2,0.00803062]
[1741911841141,1.07198,1866.4,1866.2,1.08009062]
[1741911842441,1.4233,1866.5,1866.3,1.07203]
[1741911842944,1.07201,1866.4,1866.2,1.08010062]
[1741911843239,1.4233,1866.5,1866.2,0.00803062]
[1741911843442,1.072,1866.4,1866.3,1.07203]
[1741911843943,1.07198,1866.4,1866.3,1.07203]
[1741911844144,1.07198,1866.4,1866.3,1.3624]
[1741911844641,2.37958,1866.4,1866.3,1.3624]
[1741911845335,0.00803062,1866.6,1866.3,1.3624]
[1741911845536,2.38752062,1866.6,1866.5,1.07193]
[1741911845750,2.38750062,1866.6,1866.5,2.43433]
[1741911846128,2.38750062,1866.6,1866.5,1.3624]
[1741911846733,0.00803062,1866.6,1866.5,2.43433]
[1741911846940,0.00803062,1866.6,1866.5,3.10483]
[1741911847346,1.07161,1867.1,1866.9,1.07167]
[1741911847542,2.48041,1867.1,1867.0,1.3789]
[1741911848034,1.4088,1867.1,1867.0,2.45054]
[1741911848231,3.2078,1867.2,1867.1,1.07158]
[1741911848435,4.28735062,1867.2,1867.1,1.3789]
[1741911848638,5.69615062,1867.2,1867.1,1.3789]
[1741911848838,2.48835062,1867.2,1867.1,1.3789]
[1741911851847,1.41683062,1867.2,1867.1,2.45048]
[1741911852144,1.41683062,1867.2,1867.1,1.3789]
[1741911852542,2.48835062,1867.2,1867.1,1.3789]
[1741911852746,0.00803062,1867.2,1867.1,1.3789]
[1741911852935,2.40587,1867.5,1867.3,1.07144]
[1741911853138,1.07135,1867.5,1867.4,1.3682]
[1741911853347,4.05317,1867.7,1867.2,0.7209]
[1741911853538,1.07145,1867.4,1867.3,1.3682]
[1741911855736,0.00535376,1867.5,1867.2,0.00803062]
[1741911855934,1.07147,1867.3,1867.2,0.00803062]
[1741911856340,1.07147,1867.3,1867.2,1.38403062]
[1741911858043,1.07145,1867.4,1867.2,2.45553062]
[1741911858352,1.07141,1867.4,1867.3,1.376]
[1741911859949,1.07147,1867.3,1867.2,0.00803062]
[1741911860542,3.7613,1867.3,1866.9,1.3867]
[1741911860755,1.07164,1867.0,1866.9,1.3867]
[1741911861155,3.2078,1867.2,1866.9,1.3867]
[1741911861350,1.07146,1867.4,1867.1,1.07158]
[1741911861551,1.07146,1867.4,1867.2,2.45822]
[1741911861750,1.07146,1867.4,1867.3,1.3867]
[1741911862449,2.43106,1867.4,1867.3,1.3867]
[1741911863259,1.3596,1867.4,1867.1,0.00803062]
[1741911863455,1.07152,1867.2,1867.1,1.45313062]
[1741911863850,1.3596,1867.4,1867.1,2.52471062]
[1741911864050,2.48401,1867.3,1867.1,2.52471062]
[1741911864249,1.4125,1867.3,1867.2,2.51662]
[1741911864549,0.00535376,1867.5,1867.2,1.4451]
[1741911864754,1.07144,1867.4,1867.3,1.4451]
[1741911865558,1.41785376,1867.5,1867.3,1.4451]
[1741911865746,0.00535376,1867.5,1867.4,1.77881]
[1741911865949,0.00535376,1867.5,1867.4,2.44521]
[1741911866956,0.00535376,1867.5,1867.4,5.65301]
[1741911867259,3.8996,1868.0,1867.4,7.0816]
[1741911867459,1.4059,1867.9,1867.5,4.26761069]
[1741911867656,1.07124,1867.7,1867.6,1.3017]
[1741911867961,1.07121,1867.8,1867.6,2.37297]
[1741911868267,1.07121,1867.8,1867.7,1.3992]
[1741911870158,1.07121,1867.8,1867.5,2.422]
[1741911870159,1.0713,1867.6,1867.5,2.422]
[1741911870358,1.0713,1867.6,1867.5,1.3992]
[1741911871463,1.3787,1867.7,1867.4,1.3738]
[1741911871762,1.07135,1867.5,1867.4,1.3738]
[1741911871962,0.6721,1867.6,1867.4,1.91759959]
[1741911872163,1.3157,1867.5,1867.4,2.44521]
[1741911872363,1.3157,1867.5,1867.4,2.98911952]
[1741911872873,1.3157,1867.5,1867.1,0.00803062]
[1741911873079,1.07147,1867.3,1867.2,0.54412459]
[1741911873372,1.07152,1867.2,1867.1,0.00803062]
[1741911873564,2.38722,1867.2,1867.1,0.55250289]
[1741911873763,2.38722,1867.2,1867.1,0.00803062]
[1741911877276,3.09912,1867.2,1867.1,0.00803062]
[1741911878971,1.07181,1866.7,1866.5,1.07189]
[1741911879281,1.07187,1866.6,1866.5,1.3273]
[1741911879479,1.07187,1866.6,1866.5,2.74752411]
[1741911879779,1.07187,1866.6,1866.5,2.74764014]
[1741911880082,1.07187,1866.6,1866.5,1.87357601]
[1741911880278,1.07989062,1866.7,1866.5,2.94550601]
[1741911880471,0.00803062,1866.7,1866.6,1.61814601]
[1741911880780,0.00803062,1866.7,1866.6,0.54627601]
[1741911880975,0.00803062,1866.7,1866.6,1.61814601]
[1741911881171,1.3137,1867.0,1866.6,3.91979372]
[1741911881385,3.2078,1867.3,1866.8,3.2078]
[1741911881682,4.27931,1867.3,1867.1,1.07154]
[1741911882177,1.07156,1867.2,1867.0,1.73002]
[1741911882479,2.38526,1867.2,1867.0,1.73002]
[1741911883783,1.3137,1867.2,1867.0,0.6584]
[1741911883984,1.3137,1867.2,1867.1,1.61727558]
[1741911884174,1.3137,1867.2,1867.1,3.03687558]
[1741911884588,2.38522,1867.2,1867.1,1.96529558]
[1741911884886,1.3137,1867.2,1867.1,3.03687558]
[1741911885086,0.00803062,1867.4,1867.2,1.07149]
[1741911885287,0.00803062,1867.4,1867.3,3.03681837]
[1741911885591,3.2078,1867.9,1867.3,6.18251772]
[1741911885887,1.3761,1867.8,1867.5,3.2078]
[1741911886090,1.3761,1867.8,1867.3,3.8733]
[1741911886279,1.07141,1867.4,1867.3,2.0851]
[1741911886481,1.07141,1867.4,1867.3,1.4196]
[1741911887501,1.07147,1867.3,1867.2,0.00803062]
[1741911887886,2.48324,1867.4,1867.2,1.07954062]
[1741911888086,2.48327,1867.4,1867.2,1.31413062]
[1741911888393,2.48327,1867.3,1867.2,1.31413062]
[1741911888596,1.4118,1867.3,1867.2,1.31413062]
[1741911888794,1.07139,1867.5,1867.2,1.85988662]
[1741911888985,2.48319,1867.5,1867.3,1.61712267]
[1741911889292,3.2078,1867.7,1867.4,0.54563944]
[1741911889479,2.48315,1867.5,1867.4,1.3229]
[1741911889684,1.4118,1867.5,1867.4,2.39431]
[1741911889891,1.4118,1867.5,1867.4,2.93993363]
[1741911890088,1.4118,1867.5,1867.4,1.3229]
[1741911890293,2.48315,1867.5,1867.4,1.3229]
[1741911891997,1.4118,1867.5,1867.2,0.00803062]
[1741911892192,1.07147,1867.3,1867.2,1.33093062]
[1741911895098,1.4118,1867.4,1867.2,1.87645727]
[1741911895296,1.4118,1867.4,1867.2,2.40243062]
[1741911895297,2.48323,1867.4,1867.2,2.40243062]
[1741911895494,1.4118,1867.4,1867.3,1.95098652]
[1741911895990,1.4118,1867.4,1867.3,3.02245652]
[1741911896296,2.48321,1867.4,1867.3,1.4055]
[1741911896699,9.01627,1867.7,1867.5,1.07133]
[1741911896700,4.98736,1867.7,1867.5,1.07133]
[1741911896888,4.98736,1867.7,1867.6,1.4055]
[1741911897087,6.41636,1867.7,1867.6,1.4055]
[1741911897290,4.6368,1867.7,1867.6,1.4055]
[1741911897491,3.2078,1868.0,1867.8,1.07116]
[1741911897691,4.27889,1868.0,1867.9,1.4055]
[1741911897898,3.2078,1868.0,1867.9,2.47662]
[1741911898093,1.429,1868.2,1867.9,1.4055]
[1741911898404,1.07101,1868.1,1868.0,0.7151]
[1741911898705,1.07101,1868.1,1868.0,2.131]
[1741911899000,2.49997,1868.2,1868.0,3.20207]
[1741911899200,1.429,1868.2,1868.0,3.20204]
[1741911899398,2.49996,1868.2,1868.0,3.20204]
[1741911899995,1.429,1868.2,1868.0,2.131]
[1741911900199,1.429,1868.2,1868.1,1.07101]
[1741911900598,1.429,1868.2,1868.0,3.20202]
[1741911900798,3.2078,1868.3,1868.0,2.131]
[1741911901001,4.5595,1868.5,1868.1,0.54557295]
[1741911901195,1.07089,1868.4,1868.2,1.4159]
[1741911901400,2.42259,1868.3,1868.2,1.4159]
[1741911901706,2.42259,1868.3,1868.1,0.69433062]
[1741911901707,1.07095,1868.2,1868.1,0.00803062]
[1741911901904,3.13805,1868.2,1868.1,0.00803062]
[1741911902604,6.31555,1868.2,1868.1,0.00803062]
[1741911902803,5.2446,1868.2,1867.7,2.1241]
[1741911903004,1.07116,1867.9,1867.7,2.1241]
[1741911903205,1.3642,1867.8,1867.7,3.19534]
[1741911903404,20.5,1868.1,1867.8,1.07115]
[1741911903605,21.8642,1868.1,1867.9,1.4378]
[1741911903804,1.07098,1868.2,1868.0,1.07105]
[1741911904107,1.07901062,1868.2,1868.1,2.1202]
[1741911904297,0.00803062,1868.2,1868.1,3.19121]
[1741911904811,1.07898062,1868.2,1868.1,2.1202]
[1741911905511,1.07898062,1868.2,1868.1,1.4378]
[1741911906210,2.41288062,1868.2,1868.1,1.4378]
[1741911907005,1.34193062,1868.2,1868.1,1.4378]
[1741911907204,0.00803062,1868.2,1868.1,1.4378]
[1741911907399,1.07898062,1868.2,1868.1,1.4378]
[1741911907615,0.00803062,1868.2,1868.1,1.4378]
[1741911908006,0.00803062,1868.2,1868.1,5.71661]
[1741911908510,1.9843,1868.8,1868.3,2.67721]
[1741911908813,1.3061,1868.8,1868.5,3.2078]
[1741911909015,1.07078,1868.5,1868.4,1.3611]
[1741911909211,1.07078,1868.5,1868.4,2.7214]
[1741911909416,1.07089,1868.3,1868.2,2.431]
[1741911909616,1.07089,1868.3,1868.1,2.43131]
[1741911909815,1.07089,1868.3,1868.2,1.3603]
[1741911910011,2.37699,1868.3,1868.2,1.3603]
[1741911910206,1.3061,1868.3,1868.2,2.43125]
[1741911910420,1.3061,1868.3,1868.2,1.3603]
[1741911910716,2.37699,1868.3,1868.2,1.3603]
[1741911911115,2.37699,1868.3,1868.0,1.3611]
[1741911911116,1.071,1868.2,1868.0,1.3611]
[1741911911416,1.071,1868.2,1868.1,1.4227]
[1741911912517,1.07107,1868.0,1867.9,3.2078]
[1741911912717,1.07105,1868.1,1868.0,1.4227]
[1741911914212,1.07101,1868.1,1868.0,1.4227]
[1741911914416,1.07112,1867.9,1867.8,0.70703062]
[1741911914617,1.07112,1867.9,1867.8,2.11823062]
[1741911914812,1.07112,1867.9,1867.8,1.41923062]
[1741911915012,4.27892,1867.9,1867.8,0.00803062]
[1741911915219,6.56573,1867.9,1867.5,24.043]
[1741911915423,6.56573,1867.9,1867.6,1.4112]
[1741911915424,3.8879,1867.9,1867.6,1.4112]
[1741911915616,1.07124,1867.7,1867.6,1.4112]
[1741911916118,4.95906,1867.9,1867.6,1.4112]
[1741911916317,4.95906,1867.9,1867.7,0.6955]
[1741911916318,3.8879,1867.9,1867.7,0.6955]
[1741911916622,4.95906,1867.9,1867.8,1.4112]
[1741911917028,3.8879,1867.9,1867.5,28.33014062]
[1741911917230,3.8879,1867.9,1867.6,1.4448]
[1741911917430,3.8879,1867.9,1867.6,2.51605]
[1741911917732,1.07124,1867.7,1867.6,1.4448]
[1741911919025,3.8879,1867.9,1867.5,27.25883062]
[1741911919227,1.07126,1867.7,1867.5,29.77498062]
[1741911919431,1.07126,1867.7,1867.6,1.4448]
[1741911920424,1.07118,1867.8,1867.6,1.4448]
[1741911920624,3.8879,1867.9,1867.6,1.4448]
[1741911920824,0.00803062,1868.0,1867.9,1.07112]
[1741911921026,0.00803062,1868.0,1867.9,4.27892]
[1741911921227,0.00803062,1868.0,1867.9,6.29263498]
[1741911921427,3.2078,1868.4,1867.8,4.6171]
[1741911921635,1.07111,1868.0,1867.8,2.48047]
[1741911921830,1.07111,1868.0,1867.9,1.4093]
[1741911922129,1.3556,1868.2,1867.9,1.4093]
[1741911922534,1.07107,1868.0,1867.9,1.4093]
[1741911923126,4.5634,1868.2,1867.7,2.8362]
[1741911923327,4.5634,1868.2,1867.8,0.54577921]
[1741911923537,1.07107,1868.0,1867.9,1.4393]
[1741911924127,1.07124,1867.7,1867.5,27.54338062]
[1741911924333,1.07122,1867.8,1867.6,3.45641677]
[1741911924527,1.07122,1867.8,1867.5,28.22278062]
[1741911924528,1.07122,1867.8,1867.7,1.98543032]
[1741911925837,1.07122,1867.8,1867.7,1.98574156]
[1741911926142,0.7074,1867.9,1867.7,4.52889524]
[1741911926143,1.77854,1867.9,1867.7,4.52889524]
[1741911926336,1.77854,1867.9,1867.8,1.91364156]
[1741911926640,1.77854,1867.9,1867.8,1.3672]
[1741911926840,1.77854,1867.9,1867.8,1.91374342]
[1741911927439,0.7074,1867.9,1867.8,1.91374342]
[1741911927643,1.77852,1867.9,1867.8,1.91385785]
[1741911928240,3.34372,1868.2,1867.8,2.98501785]
[1741911928437,1.07107,1868.0,1867.9,1.91385785]
[1741911928631,1.07107,1868.0,1867.9,1.3672]
[1741911929934,5.956,1868.4,1867.9,2.51133836]
[1741911930135,1.07088,1868.4,1868.1,1.07096]
[1741911930340,1.07089,1868.3,1868.2,1.88516388]
[1741911930538,8.98259,1868.5,1868.1,1.3295]
[1741911930834,1.3503,1868.2,1867.8,2.421]
[1741911931035,1.07107,1868.0,1867.9,1.87601568]
[1741911931541,1.3503,1868.2,1867.9,1.87607372]
[1741911931741,1.3503,1868.2,1868.0,1.87600734]
[1741911931943,2.4213,1868.2,1868.1,1.318]
[1741911933042,1.07109,1868.0,1867.8,3.49217]
[1741911933240,1.3503,1868.2,1867.9,3.33646234]
[1741911933444,1.07105,1868.1,1868.0,1.86449393]
[1741911933644,1.07105,1868.1,1868.0,0.54649393]
[1741911934743,1.07118,1867.8,1867.7,1.3388]
[1741911934941,1.07118,1867.8,1867.7,3.3577429]
[1741911935436,1.07118,1867.8,1867.7,3.35794923]
[1741911935642,1.0713,1867.6,1867.5,27.25883062]
[1741911935842,1.0713,1867.6,1867.5,0.00803062]
[1741911936939,0.7129,1867.8,1867.5,0.00803062]
[1741911937147,6.69994,1867.9,1867.6,1.61584503]
[1741911937443,0.7129,1868.1,1867.7,1.91911653]
[1741911937644,0.7129,1868.1,1867.8,3.75221653]
[1741911937645,1.07103,1868.1,1867.8,3.75221653]
[1741911937843,3.0934,1868.3,1867.9,0.54441653]
[1741911938046,3.0934,1868.3,1867.8,3.2078]
[1741911938349,3.0934,1868.3,1867.9,0.54430894]
[1741911938649,3.0934,1868.3,1867.7,1.3747]
[1741911938650,1.07116,1867.9,1867.7,2.4459]
[1741911938851,1.07112,1867.9,1867.8,0.54443669]
[1741911939045,1.07112,1867.9,1867.7,2.4459]
[1741911939046,1.07112,1867.9,1867.7,1.3747]
[1741911939241,5.88523,1868.2,1867.7,1.3747]
[1741911939242,1.07112,1868.0,1867.7,2.44591]
[1741911939443,1.07112,1868.0,1867.8,0.54465213]
[1741911939743,1.07113,1867.9,1867.7,2.44591]
[1741911940054,1.07111,1868.0,1867.8,0.54449217]
[1741911940244,1.07111,1868.0,1867.7,2.44591]
[1741911940445,1.07111,1868.0,1867.8,0.54441996]
[1741911940748,1.07114,1867.9,1867.7,1.3747]
[1741911940939,1.73512,1868.0,1867.8,0.54457852]
[1741911941145,1.73512,1868.0,1867.7,2.44592]
[1741911941349,1.77954,1868.1,1867.8,1.61504862]
[1741911941547,1.77954,1868.1,1867.9,1.61499862]
[1741911941747,1.77954,1868.1,1867.9,1.0711]
[1741911941949,1.07107,1868.0,1867.8,4.27897]
[1741911942143,1.07107,1868.0,1867.9,0.54381933]
[1741911942343,5.6328,1868.0,1867.5,0.00803062]
[1741911942544,5.6328,1868.0,1867.6,0.54410425]
[1741911942545,1.07128,1867.7,1867.6,0.54410425]
[1741911943246,1.07128,1867.7,1867.6,0.54410497]
[1741911943444,0.664,1867.9,1867.5,0.00803062]
[1741911943445,1.0713,1867.6,1867.5,0.00803062]
[1741911943651,4.9652,1867.6,1867.5,0.00803062]
[1741911944447,5.6849,1867.6,1867.5,0.00803062]
[1741911945753,5.6849,1867.6,1866.8,24.037]
[1741911945754,1.0718,1866.8,1866.5,1.60789]
[1741911945943,1.07169,1867.0,1866.7,3.10271]
[1741911946149,2.43,1867.2,1866.8,4.41583836]
[1741911946340,1.4096,1867.1,1866.9,1.87973567]
[1741911946540,2.48122,1867.1,1867.0,1.3355]
[1741911951849,1.4096,1867.1,1867.0,1.3355]
[1741911953254,2.48118,1867.1,1867.0,1.3355]
[1741911953460,1.4096,1867.1,1867.0,1.3355]
[1741911953658,2.48118,1867.1,1867.0,1.3355]
[1741911954361,1.4096,1867.1,1867.0,1.3355]
[1741911954654,2.48118,1867.1,1867.0,1.3355]
[1741911954854,2.48118,1867.1,1866.8,0.00803062]
[1741911954855,1.0717,1866.9,1866.8,0.00803062]
[1741911955159,1.0717,1866.9,1866.8,1.36933062]
[1741911955658,2.3774,1866.9,1866.8,1.36933062]
[1741911955856,2.3774,1866.9,1866.8,0.00803062]
[1741911956055,1.07186,1866.7,1866.5,1.3613]
[1741911956250,1.3057,1866.6,1866.5,1.3613]
[1741911956652,2.37757,1866.6,1866.5,1.3613]
[1741911957655,1.3057,1866.6,1866.5,1.3613]
[1741911957850,1.3057,1866.6,1866.5,2.43323]
[1741911958254,3.2078,1867.0,1866.7,1.07181]
[1741911958462,4.83954,1866.9,1866.8,1.4306]
[1741911960259,3.7678,1866.9,1866.8,1.4306]
[1741911960666,4.8395,1866.9,1866.8,1.4306]
[1741911961160,6.9756,1866.9,1866.5,3.2078]
[1741911961361,1.07184,1866.7,1866.6,1.3199]
[1741911961764,1.07187,1866.6,1866.5,0.719]
[1741911962062,1.07182,1866.7,1866.5,3.11078]
[1741911962263,1.07182,1866.7,1866.6,1.3199]
[1741911963871,1.3902,1866.8,1866.5,0.719]
[1741911964071,2.47957,1866.6,1866.5,2.1197]
[1741911964369,2.47957,1866.6,1866.5,1.4007]
[1741911965369,1.07187,1866.6,1866.5,1.4007]
[1741911965567,1.3183,1866.8,1866.5,2.1133]
[1741911965870,1.07186,1866.7,1866.6,1.4264]
[1741911966261,1.3183,1866.8,1866.6,1.4264]
[1741911966463,3.2078,1867.1,1866.6,1.4264]
[1741911966663,1.3183,1867.0,1866.7,3.2078]
[1741911966858,2.43003062,1867.2,1866.8,2.1422]
[1741911967064,2.38998,1867.0,1866.9,1.4264]
[1741911967260,1.07175,1866.8,1866.7,3.2078]
[1741911967460,5.0943,1866.9,1866.6,1.4264]
[1741911967665,2.39005,1866.8,1866.6,2.49824]
[1741911967866,2.39005,1866.8,1866.6,1.4264]
[1741911968065,2.39005,1866.8,1866.7,1.4264]
[1741911969169,1.3183,1866.8,1866.7,1.4264]
[1741911969373,1.3183,1866.8,1866.7,2.49821]
[1741911969576,1.07164,1867.0,1866.8,1.07175]
[1741911969776,1.07164,1867.0,1866.9,2.0359]
[1741911970169,2.48174,1867.0,1866.9,2.0359]
[1741911971177,5.63883062,1867.2,1866.9,3.10757]
[1741911971374,2.48173,1867.1,1867.0,1.3314]
[1741911971668,1.07960062,1867.2,1867.1,1.07158]
[1741911971870,0.00803062,1867.2,1867.1,1.07158]
[1741911972065,0.00803062,1867.2,1867.1,2.42548]
[1741911972477,1.07955062,1867.2,1867.1,1.3539]
[1741911973574,1.07955062,1867.2,1867.1,1.8985487]
[1741911973575,0.00803062,1867.2,1867.1,1.8985487]
[1741911973775,0.00803062,1867.2,1867.1,2.9701287]
[1741911975274,0.00803062,1867.2,1867.1,6.57114535]
[1741911975475,0.00803062,1867.2,1867.1,6.1779287]
[1741911975671,0.00803062,1867.2,1867.1,7.6428699]
[1741911977774,1.43373062,1867.2,1867.1,7.64095079]
[1741911977976,1.43373062,1867.2,1867.1,6.17704752]
[1741911978477,0.00803062,1867.2,1867.1,7.63961681]
[1741911978978,1.43373062,1867.2,1867.1,7.63961681]
[1741911979274,0.00803062,1867.2,1867.1,7.63940681]
[1741911980971,1.36833062,1867.2,1867.1,6.17704752]
[1741911981677,1.36833062,1867.2,1867.1,6.17677682]
[1741911983071,0.00803062,1867.2,1867.1,6.17677682]
[1741911983277,0.00803062,1867.2,1867.1,7.63846163]
[1741911983484,0.00803062,1867.2,1867.1,6.76924512]
[1741911983684,0.00803062,1867.2,1867.1,6.17657281]
[1741911984182,1.33233062,1867.2,1867.1,6.17657281]
[1741911985380,1.33233062,1867.2,1867.1,2.96877281]
[1741911985880,1.33233062,1867.2,1867.1,6.17657281]
[1741911987385,1.33233062,1867.2,1867.1,5.63328]
[1741911987682,1.33233062,1867.2,1867.1,6.17659253]
[1741911989483,1.33233062,1867.2,1867.1,6.1761557]
[1741911990983,0.00803062,1867.2,1867.1,6.1761557]
[1741911991186,3.2078,1867.6,1867.4,1.07135]
[1741911991389,2.422,1867.7,1867.4,1.07135]
[1741911991390,2.38225,1867.5,1867.4,1.07135]
[1741911991881,1.07141,1867.4,1867.3,1.78945]
[1741911992089,1.3109,1867.4,1867.3,2.33267415]
[1741911993383,1.3109,1867.4,1867.3,2.33284683]
[1741911993889,1.3109,1867.4,1867.3,1.78945]
[1741911994090,1.3109,1867.4,1867.3,2.33303908]
[1741911994390,2.38231,1867.4,1867.3,2.33303908]
[1741911994590,1.3109,1867.4,1867.3,2.33303908]
[1741911994892,1.3109,1867.4,1867.3,1.78945]
[1741911995088,1.3109,1867.4,1867.3,2.33328983]
[1741911995984,3.06481,1867.4,1867.3,1.61530983]
[1741911996487,3.06481,1867.4,1867.3,0.54383983]
[1741911997088,3.06481,1867.4,1867.3,1.61530983]
[1741911997288,1.9934,1867.4,1867.3,1.61530983]
[1741911997489,3.06481,1867.4,1867.3,1.61530983]
[1741911997884,3.06481,1867.4,1867.3,0.54383983]
[1741911999193,1.9934,1867.4,1867.3,1.61530983]
[1741911999694,1.3109,1867.4,1867.3,3.07969455]
[1741911999896,1.3109,1867.4,1867.3,3.78739455]
[1741912000691,1.3109,1867.4,1867.3,3.78717282]
[1741912000890,1.3109,1867.4,1867.3,3.78665975]
[1741912001397,2.38231,1867.4,1867.3,0.54433729]
[1741912001591,2.38231,1867.4,1867.3,1.61580729]
[1741912002600,2.38231,1867.4,1867.3,0.54433729]
[1741912002994,0.00803062,1867.5,1867.4,1.07141]
[1741912003194,0.00803062,1867.5,1867.4,4.4784705]
[1741912003395,5.2317,1867.8,1867.7,1.07124]
[1741912003589,3.2078,1868.4,1867.8,2.67796]
[1741912003901,0.6845,1868.3,1868.2,1.07095]
[1741912004102,2.0239,1868.3,1868.2,1.07095]
[1741912004303,2.0239,1868.3,1868.2,2.39935]
[1741912004601,3.09479,1868.3,1868.2,1.3284]
[1741912004801,3.09479,1868.3,1868.2,2.39935]
[1741912005001,2.0239,1868.3,1868.2,2.39935]
[1741912005404,1.3394,1868.3,1868.2,2.39935]
[1741912005697,8.11576,1868.6,1868.4,1.07084]
[1741912006004,1.4438,1868.5,1868.4,1.07084]
[1741912006999,9.1638,1868.8,1868.4,0.56834248]
[1741912007302,1.4438,1868.7,1868.6,1.07072]
[1741912007502,1.4438,1868.7,1868.6,2.47992]
[1741912011301,2.421,1868.8,1868.7,1.07066]
[1741912011507,4.83691,1868.8,1868.7,2.46786]
[1741912011713,4.83691,1868.8,1868.7,1.3972]
[1741912011913,3.7663,1868.8,1868.7,2.46786]
[1741912012805,4.5959,1869.0,1868.9,1.07055]
[1741912013011,1.3453,1869.1,1869.0,1.07049]
[1741912013205,1.3453,1869.1,1869.0,2.46769]
[1741912013403,5.61792,1869.4,1869.2,1.07038]